bitfinex/quotes_ETHUSD_20241018
["timestamp","ask_amount","ask_price","bid_price","bid_amount"]
[1729215672069,3.81141,2623.7,2623.2,1.0403]
[1729215672439,3.81141,2623.7,2623.2,4.85242]
[1729215672636,8.63576,2623.9,2623.3,0.86646]
[1729215672880,3.81127,2623.8,2623.3,4.67845]
[1729215673174,8.63572,2623.9,2623.3,4.67845]
[1729215673386,4.82451,2623.9,2623.3,4.67845]
[1729215673532,3.81128,2623.8,2623.3,4.67845]
[1729215673736,3.81128,2623.8,2623.4,0.571875]
[1729215674169,4.82451,2623.9,2623.4,0.571875]
[1729215674556,3.81121,2623.9,2623.4,4.383715]
[1729215674981,3.81127,2623.8,2623.4,0.571875]
[1729215675385,3.81178,2623.5,2623.2,1.0403]
[1729215675886,3.81178,2623.5,2623.0,1.078]
[1729215676384,1.0328,2623.6,2623.1,3.81226]
[1729215676761,1.0328,2623.6,2623.1,7.62452]
[1729215676964,1.0328,2624.0,2623.3,1.078]
[1729215677178,3.81092,2624.1,2623.7,1.078]
[1729215677475,3.81063,2624.3,2623.7,1.078]
[1729215678360,3.81083,2624.1,2623.7,1.078]
[1729215678562,4.44234947,2624.4,2623.4,1.078]
[1729215678768,3.8112,2623.9,2623.4,1.078]
[1729215679294,3.8115,2623.7,2623.4,1.078]
[1729215679642,3.8115,2623.7,2623.3,1.078]
[1729215680078,3.81172,2623.5,2623.3,1.078]
[1729215680278,3.81167,2623.6,2623.1,4.89025]
[1729215680486,3.81167,2623.6,2623.1,5.379275]
[1729215680983,3.81133,2623.8,2623.2,3.812]
[1729215681280,4.84393,2623.9,2623.4,3.81183]
[1729215681479,3.81127,2623.8,2623.2,7.62404]
[1729215681780,3.81105,2624.0,2623.3,4.7310365]
[1729215682084,3.81078,2624.2,2623.5,4.88712]
[1729215682253,3.81063,2624.3,2623.8,1.0755]
[1729215682452,3.8107,2624.2,2623.8,1.945313]
[1729215682644,3.8107,2624.2,2623.8,1.0755]
[1729215684185,3.81061,2624.3,2623.8,1.0755]
[1729215684986,3.81049,2624.4,2623.8,1.0755]
[1729215685147,3.8102,2624.6,2623.9,3.81101]
[1729215685343,3.40954947,2625.0,2623.8,1.0755]
[1729215685344,4.87832,2625.2,2624.5,3.81014]
[1729215685568,3.80953,2625.0,2624.7,1.0655]
[1729215685879,3.80938,2625.1,2624.7,1.0655]
[1729215686057,4.87831,2625.2,2624.7,1.0655]
[1729215686248,3.8094,2625.1,2624.7,1.0655]
[1729215686443,3.80931,2625.2,2624.7,1.0655]
[1729215686855,3.8093,2625.2,2624.7,1.0655]
[1729215687074,3.80953,2625.0,2624.7,1.0655]
[1729215687267,3.8093,2625.2,2624.7,1.0655]
[1729215688246,4.89283,2625.4,2624.7,1.934051]
[1729215688450,3.8091,2625.3,2624.8,3.88590752]
[1729215688887,3.8091,2625.3,2624.8,3.80972]
[1729215689182,3.80913,2625.3,2624.8,3.80972]
[1729215689427,3.80881,2625.5,2624.9,1.0609]
[1729215689683,3.80881,2625.5,2625.0,0.487059]
[1729215690283,1.0135353,2625.8,2625.2,1.0324]
[1729215690507,3.80863,2625.7,2625.2,1.0324]
[1729215691280,3.80865,2625.6,2625.2,1.0324]
[1729215691482,3.80862,2625.7,2625.2,1.5652889]
[1729215692292,7.61726,2625.7,2625.2,1.5652889]
[1729215692448,3.80862,2625.7,2625.2,1.5652889]
[1729215693294,7.61726,2625.7,2625.2,1.5652889]
[1729215693589,3.80862,2625.7,2625.2,1.5652889]
[1729215694389,3.80862,2625.7,2625.3,0.53746289]
[1729215694592,1.0135353,2625.8,2625.3,0.53746289]
[1729215694897,3.80855,2625.7,2625.3,0.53746289]
[1729215695094,3.80865,2625.6,2625.2,1.5652889]
[1729215695384,3.80855,2625.7,2625.2,1.5652889]
[1729215696503,1.0135353,2625.8,2625.2,5.3744889]
[1729215696793,1.0135353,2625.8,2625.7,3.40954947]
[1729215696998,1.0135353,2625.8,2625.7,4.49731156]
[1729215697152,1.0135353,2625.8,2625.7,9.13639372]
[1729215697359,1.0135353,2625.8,2625.7,5.65068216]
[1729215697581,1.0135353,2625.8,2625.7,1.84218216]
[1729215697795,1.0135353,2625.8,2625.2,3.5428889]
[1729215697796,1.0135353,2625.8,2625.3,1.0116]
[1729215698093,1.0135353,2625.8,2625.7,1.0116]
[1729215700155,1.0135353,2625.8,2625.7,4.8201]
[1729215701302,1.0135353,2625.8,2625.7,1.0116]
[1729215702699,3.80858,2625.7,2625.2,1.0526]
[1729215702901,3.80873,2625.6,2625.2,1.838795]
[1729215703109,3.80902,2625.4,2625.2,1.0526]
[1729215703395,3.80902,2625.4,2624.9,1.0526]
[1729215703396,3.80926,2625.2,2624.9,1.0526]
[1729215704202,3.80879,2625.5,2624.9,1.0526]
[1729215704504,3.80933,2625.2,2624.7,1.921151]
[1729215704673,3.80933,2625.2,2624.7,2.34769305]
[1729215704873,3.80946,2625.1,2624.7,1.0526]
[1729215709613,3.80946,2625.1,2624.7,1.12879132]
[1729215709777,1.0135353,2625.8,2624.6,3.8101]
[1729215709778,0.41174871,2625.8,2625.7,4.8601]
[1729215709981,0.41174871,2625.8,2625.7,8.26964947]
[1729215710221,0.41174871,2625.8,2625.7,9.48509474]
[1729215712313,0.41174871,2625.8,2625.7,10.04509474]
[1729215712526,0.41174871,2625.8,2625.7,9.48509474]
[1729215723430,0.41174871,2625.8,2625.7,8.43349474]
[1729215723693,0.41174871,2625.8,2625.7,7.21804947]
[1729215726806,0.41174871,2625.8,2625.7,3.8085]
[1729215727421,0.41174871,2625.8,2625.7,7.29420555]
[1729215728443,0.41174871,2625.8,2625.7,7.21804947]
[1729215728639,0.41174871,2625.8,2625.7,7.29420583]
[1729215728809,0.41174871,2625.8,2625.7,8.40449141]
[1729215729140,0.41174871,2625.8,2625.7,8.32833505]
[1729215730825,0.41174871,2625.8,2625.7,4.91878558]
[1729215731369,4.22012871,2625.8,2625.2,3.80917]
[1729215731555,3.80852,2625.7,2625.2,3.80915]
[1729215731726,1.44864871,2625.8,2625.1,1.0692]
[1729215732047,0.41174871,2625.8,2625.5,3.80875]
[1729215732207,0.41174871,2625.8,2625.6,3.88470523]
[1729215732410,0.41174871,2625.8,2625.5,3.80875]
[1729215732640,0.41174871,2625.8,2625.5,7.61744]
[1729215733023,0.41174871,2625.8,2625.6,0.07616387]
[1729215733223,0.41174871,2625.8,2625.6,3.80856]
[1729215733641,0.41174871,2625.8,2625.5,3.80869]
[1729215734055,0.41174871,2625.8,2625.7,3.8085]
[1729215734924,0.41174871,2625.8,2625.7,7.29421016]
[1729215736343,0.41174871,2625.8,2625.7,8.51197618]
[1729215736647,0.41174871,2625.8,2625.7,9.49821549]
[1729215737236,0.1276043,2626.2,2626.1,3.80792]
[1729215737551,0.1276043,2626.2,2626.1,7.21746947]
[1729215739131,0.1276043,2626.2,2626.1,7.29360598]
[1729215739458,0.1276043,2626.2,2626.1,8.43387707]
[1729215741627,0.1276043,2626.2,2626.1,9.44457707]
[1729215745661,0.1276043,2626.2,2626.1,6.0350276]
[1729215745864,0.1276043,2626.2,2626.1,9.44457707]
[1729215748035,0.1276043,2626.2,2626.1,9.99457707]
[1729215748439,0.005,2626.8,2626.7,1.5861]
[1729215748739,0.005,2626.8,2626.7,9.7998737]
[1729215748939,0.005,2626.8,2626.7,11.69766247]
[1729215749153,0.005,2626.8,2626.7,12.80956247]
[1729215749374,0.005,2627.3,2627.2,3.80633]
[1729215749542,0.005,2627.3,2627.2,7.29198336]
[1729215749738,0.005,2627.3,2627.2,8.85597364]
[1729215749965,0.005,2627.3,2627.2,5.37032028]
[1729215750485,0.005,2627.3,2627.1,3.80638]
[1729215751681,0.005,2627.3,2626.7,8.13757247]
[1729215751997,0.005,2627.3,2626.5,4.84566]
[1729215751998,4.8442,2627.2,2626.6,3.80716]
[1729215752146,4.8442,2627.2,2626.4,7.21689947]
[1729215752147,3.80661,2627.1,2626.4,11.02427947]
[1729215752343,1.0378,2626.9,2626.4,3.80735]
[1729215752576,1.0378,2626.9,2626.4,7.61475]
[1729215752786,1.0378,2626.9,2626.4,4.568825]
[1729215753080,1.0378,2626.9,2626.6,3.80719]
[1729215753297,1.0378,2626.9,2626.7,3.80704]
[1729215753505,1.0378,2626.9,2626.7,3.88317093]
[1729215754006,1.0261,2627.2,2626.8,3.80683]
[1729215754163,0.005,2627.3,2626.9,4.19499609]
[1729215754361,0.005,2627.3,2627.2,3.80633]
[1729215754860,0.005,2627.3,2627.2,8.34419429]
[1729215755170,0.005,2627.3,2627.2,8.26807947]
[1729215756108,0.005,2627.3,2627.2,4.85853]
[1729215756313,0.005,2627.3,2627.2,6.06697495]
[1729215757271,0.005,2627.3,2627.2,6.14308123]
[1729215757474,0.005,2627.3,2627.2,6.06697495]
[1729215760984,0.005,2627.3,2627.2,6.14307876]
[1729215761520,0.005,2627.3,2627.2,6.06697495]
[1729215765278,0.005,2627.3,2627.2,5.01477495]
[1729215765491,0.005,2627.3,2626.9,4.19498609]
[1729215765697,1.0348,2627.2,2626.7,3.80693]
[1729215766079,1.0348,2627.2,2626.7,7.6139]
[1729215766282,1.0348,2627.2,2626.7,3.80693]
[1729215766481,1.0348,2627.2,2626.8,3.8069]
[1729215766975,4.84115,2627.2,2626.6,3.40954947]
[1729215767182,4.84115,2627.2,2626.6,5.09645345]
[1729215767401,4.84115,2627.2,2626.7,3.80704]
[1729215768018,3.80651,2627.1,2626.6,1.28928345]
[1729215768219,1.0607,2626.9,2626.5,3.80721]
[1729215768458,1.0607,2626.9,2626.1,3.8078]
[1729215768604,1.1088,2626.6,2626.0,3.40954947]
[1729215768801,1.1088,2626.6,2626.4,3.80745]
[1729215769043,1.1088,2626.6,2626.4,4.188195]
[1729215769242,1.1088,2626.6,2626.4,0.380745]
[1729215769417,1.1088,2626.6,2626.4,4.26437538]
[1729215769929,1.1088,2626.6,2626.4,0.45688538]
[1729215770751,1.1088,2626.6,2626.4,4.26434528]
[1729215770916,1.1088,2626.6,2626.1,3.80784]
[1729215771319,1.1088,2626.6,2626.4,3.80741]
[1729215772021,3.80643,2627.2,2626.4,3.80741]
[1729215772022,3.80643,2627.2,2626.4,3.80738]
[1729215772201,0.005,2627.3,2627.0,3.80653]
[1729215772410,0.005,2627.3,2626.8,11.02317947]
[1729215772718,0.005,2627.3,2627.0,3.80661]
[1729215772923,0.005,2627.3,2627.1,0.0761216]
[1729215773118,0.005,2627.3,2627.0,3.80661]
[1729215773329,0.005,2627.3,2626.8,4.90911795]
[1729215773549,1.113,2627.2,2626.8,3.8068]
[1729215774740,1.113,2627.2,2626.8,7.61362]
[1729215775041,1.113,2627.2,2626.9,3.80675]
[1729215776123,1.113,2627.2,2626.8,3.8068]
[1729215778134,1.113,2627.2,2626.8,7.61362]
[1729215778444,1.113,2627.2,2626.5,7.21676947]
[1729215778445,4.91933,2627.2,2626.5,7.21676947]
[1729215778610,4.91933,2627.2,2626.6,0.83140695]
[1729215779003,4.91933,2627.2,2626.5,3.80722]
[1729215779233,1.0905,2627.1,2626.2,3.40954947]
[1729215779429,1.0905,2627.1,2625.9,7.41]
[1729215779430,1.0905,2626.7,2625.9,4.43414947]
[1729215779645,4.89757,2626.7,2626.1,7.61565]
[1729215779842,4.89757,2626.7,2626.1,3.80781]
[1729215780540,4.89757,2626.7,2625.9,3.40954947]
[1729215780541,1.0206,2626.3,2625.9,3.80814]
[1729215780747,1.0206,2626.3,2626.0,3.80805]
[1729215781839,4.82825,2626.3,2625.7,3.80842]
[1729215782054,1.0206,2626.3,2625.9,3.80814]
[1729215782251,1.0206,2626.3,2626.0,0.07615412]
[1729215782456,1.0206,2626.3,2626.1,3.80784]
[1729215782739,1.0206,2626.3,2625.9,7.21765947]
[1729215783052,1.0206,2626.3,2625.9,4.52995595]
[1729215783208,1.0206,2626.3,2626.1,3.80785]
[1729215783660,1.0206,2626.3,2626.1,7.6157]
[1729215783822,3.80684,2626.9,2626.3,3.80751]
[1729215784026,3.3851156,2627.6,2626.2,3.40954947]
[1729215784027,1.0726,2626.8,2626.2,3.40954947]
[1729215784265,1.0726,2627.2,2626.7,3.80705]
[1729215784471,1.560988,2627.2,2626.6,3.80719]
[1729215784639,1.0726,2627.2,2626.6,3.80719]
[1729215784966,1.0726,2627.2,2626.8,3.80689]
[1729215785469,1.0726,2627.2,2626.9,0.07612889]
[1729215785766,1.0726,2627.2,2626.7,3.80693]
[1729215785968,3.80652,2627.1,2626.6,3.80706]
[1729215786130,1.1015,2626.8,2626.4,3.80741]
[1729215786460,1.1015,2626.8,2626.5,3.80726]
[1729215786666,1.1015,2626.8,2626.4,3.80741]
[1729215786960,1.1015,2626.8,2626.6,3.80716]
[1729215787974,1.1015,2626.8,2626.4,3.80741]
[1729215787975,1.1015,2626.8,2626.4,3.80746]
[1729215788258,1.1015,2626.8,2626.7,3.80705]
[1729215788468,1.1015,2626.8,2626.6,7.61429]
[1729215788835,1.1015,2626.8,2626.6,3.80711]
[1729215789041,1.1015,2626.8,2626.6,7.61423]
[1729215789364,1.1015,2626.8,2626.6,3.80711]
[1729215789553,1.1015,2626.8,2626.6,7.61423]
[1729215789723,1.1015,2626.8,2626.6,3.80711]
[1729215790729,1.1015,2626.8,2626.4,8.376262]
[1729215791062,1.1015,2626.8,2626.6,3.80718]
[1729215791240,1.1015,2626.8,2626.4,7.61469]
[1729215792049,1.1015,2626.8,2626.4,3.80734]
[1729215792256,4.90843,2626.8,2626.2,3.80766]
[1729215792571,1.0811,2626.7,2626.2,7.61532]
[1729215792726,1.0811,2626.7,2626.2,3.80766]
[1729215793322,3.8073,2626.6,2626.0,3.80796]
[1729215793583,7.61458,2626.6,2626.0,4.5709734]
[1729215793865,1.0444,2626.5,2626.1,3.80783]
[1729215794535,1.0444,2626.5,2626.0,8.3789634]
[1729215794866,1.0444,2626.5,2626.0,4.5709734]
[1729215795041,1.0444,2626.5,2625.8,3.80828]
[1729215795237,4.85182,2626.5,2625.9,3.80819]
[1729215795852,4.85182,2626.5,2626.0,3.80799]
[1729215796179,1.0444,2626.5,2626.2,3.80767]
[1729215796327,1.0444,2626.5,2626.3,3.80763]
[1729215796727,1.0444,2626.5,2626.2,3.80767]
[1729215796932,1.0444,2626.5,2626.0,7.61596]
[1729215797171,1.0444,2626.5,2626.0,3.80798]
[1729215797482,1.0444,2626.5,2626.1,3.80784]
[1729215797830,1.0444,2626.5,2626.0,7.61595]
[1729215798032,1.0444,2626.5,2626.1,3.8079]
[1729215799935,1.0444,2626.5,2625.9,3.80821]
[1729215800160,4.85175,2626.5,2626.0,3.80802]
[1729215800368,4.88501,2626.4,2625.9,3.80808]
[1729215800664,1.0775,2626.1,2625.5,3.80879]
[1729215800875,3.80783,2626.2,2625.5,3.80879]
[1729215800876,1.0775,2625.9,2625.5,3.80879]
[1729215801256,1.0775,2625.9,2625.3,3.80899]
[1729215801464,1.0775,2625.9,2625.3,3.80897]
[1729215801465,1.0775,2625.8,2625.3,3.80897]
[1729215801634,1.0775,2625.8,2625.3,3.80904]
[1729215802456,1.0775,2625.8,2625.0,3.80947]
[1729215802457,1.0775,2625.7,2625.0,3.80947]
[1729215802666,1.0775,2625.5,2625.2,3.80919]
[1729215803169,1.0775,2625.5,2625.4,3.80894]
[1729215803543,1.0775,2625.5,2625.3,3.80908]
[1729215804032,1.0775,2625.5,2625.2,3.80919]
[1729215804033,1.0775,2625.5,2625.2,3.80913]
[1729215804236,1.0775,2625.5,2625.2,7.61828]
[1729215804430,1.0775,2625.5,2625.2,3.80913]
[1729215804862,1.0775,2625.5,2625.4,3.80894]
[1729215805375,1.0775,2625.5,2625.2,3.80913]
[1729215805908,1.0775,2625.5,2625.2,7.61828]
[1729215806061,1.0775,2625.5,2625.2,3.80913]
[1729215806264,1.0775,2625.5,2625.0,3.80943]
[1729215806683,1.0665,2625.4,2624.8,7.61948]
[1729215806896,1.0665,2625.4,2624.8,3.80973]
[1729215807105,0.01,2625.7,2625.1,3.80937]
[1729215807106,1.0665,2625.2,2625.1,3.80937]
[1729215807407,0.72173795,2626.1,2625.4,3.80891]
[1729215807408,1.0665,2625.5,2625.4,3.80891]
[1729215808582,1.0665,2625.5,2625.2,3.8092]
[1729215808905,1.0665,2625.5,2624.7,3.80983]
[1729215808906,1.0665,2625.5,2625.4,3.80894]
[1729215809076,3.80785,2626.2,2625.5,3.80874]
[1729215809077,1.0437,2625.9,2625.5,3.80874]
[1729215809479,1.0437,2625.9,2625.5,3.80871]
[1729215809682,1.0437,2625.9,2625.2,7.2949196]
[1729215809883,1.0437,2626.5,2625.8,3.80836]
[1729215810169,4.85117,2626.5,2625.9,3.80813]
[1729215810362,1.0437,2626.5,2626.0,3.80806]
[1729215810778,3.80751,2626.4,2625.9,3.8082]
[1729215811113,1.0911,2626.3,2625.8,3.80822]
[1729215811475,1.0911,2626.3,2625.8,7.61649]
[1729215811674,1.0911,2626.3,2625.8,3.80822]
[1729215811907,3.80778,2626.2,2625.3,1.1077]
[1729215812203,1.0911,2626.3,2625.7,3.80841]
[1729215812413,1.0911,2626.3,2625.8,3.80822]
[1729215812710,1.0911,2626.3,2625.9,3.80809]
[1729215813221,1.0911,2626.3,2626.2,3.80778]
[1729215814171,1.0993,2626.7,2626.3,3.80758]
[1729215814600,1.0993,2626.7,2626.2,3.80778]
[1729215814912,1.0993,2626.7,2626.4,3.80736]
[1729215815070,1.0993,2626.7,2626.6,3.8072]
[1729215815882,1.0993,2626.7,2626.4,7.61485]
[1729215816103,1.0993,2626.7,2626.5,3.80724]
[1729215816767,1.0993,2626.7,2626.6,3.8072]
[1729215818208,1.0993,2626.7,2626.4,4.568845]
[1729215819011,1.0993,2626.7,2626.5,3.80726]
[1729215820910,1.0993,2626.7,2626.6,3.8072]
[1729215821113,1.1044,2627.1,2626.5,3.80733]
[1729215821288,1.1044,2627.1,2626.7,3.80703]
[1729215821612,1.1044,2627.1,2626.7,3.80696]
[1729215822012,1.1044,2627.1,2626.5,8.1834915]
[1729215822315,1.1044,2627.1,2626.6,3.80708]
[1729215823334,1.1044,2627.1,2626.7,3.80702]
[1729215825210,1.1044,2627.1,2626.7,7.61399]
[1729215825410,1.1044,2627.1,2626.7,7.61395]
[1729215825618,1.1044,2627.1,2626.7,3.80697]
[1729215826112,1.1044,2627.1,2626.8,3.80689]
[1729215826310,1.1044,2627.1,2626.7,3.80697]
[1729215827321,1.1044,2627.1,2626.8,3.80691]
[1729215827475,1.1229,2627.3,2626.9,3.80666]
[1729215827681,1.1229,2627.3,2626.9,7.61333]
[1729215828015,1.1229,2627.3,2626.9,3.80666]
[1729215828379,1.1229,2627.3,2627.1,3.80646]
[1729215828583,1.1229,2627.3,2627.1,3.80634]
[1729215831117,1.1229,2627.3,2626.9,3.80676]
[1729215831118,1.1229,2627.3,2627.0,3.80659]
[1729215831630,1.0,2627.6,2627.5,3.80589]
[1729215831829,1.0,2627.6,2627.5,8.32853947]
[1729215832037,1.0,2627.6,2627.5,11.32853947]
[1729215832194,1.0,2627.6,2627.5,11.87853947]
[1729215832533,1.0,2627.6,2627.5,8.47899]
[1729215832707,1e-05,2627.6,2627.5,11.89853947]
[1729215834234,1e-05,2627.6,2627.5,13.46899642]
[1729215837634,0.11825561,2628.4,2627.5,13.46899642]
[1729215837934,0.11825561,2628.4,2628.3,8.25518947]
[1729215838732,0.11825561,2628.4,2628.3,8.80518947]
[1729215839440,0.11825561,2628.4,2628.3,11.81518947]
[1729215839644,0.11825561,2628.4,2628.3,13.37819542]
[1729215839819,0.11825561,2628.4,2628.3,13.36819542]
[1729215841345,0.11825561,2628.4,2628.3,12.81819542]
[1729215843438,0.11825561,2628.4,2628.3,8.77729542]
[1729215844518,0.11825561,2628.4,2628.3,1.56300595]
[1729215844719,0.11825561,2628.4,2627.9,3.80531]
[1729215845027,0.11825561,2628.4,2627.8,3.80539]
[1729215845206,1.063,2628.3,2627.6,3.80567]
[1729215845405,4.86774,2628.3,2627.6,3.80567]
[1729215845923,5.36633956,2628.3,2627.7,3.80559]
[1729215846304,5.36633956,2628.3,2627.2,1.028]
[1729215846305,1.063,2628.3,2627.9,3.40954947]
[1729215846543,1.063,2628.3,2628.2,3.80488]
[1729215847107,1.063,2628.3,2627.9,3.80523]
[1729215847614,1.063,2628.3,2627.9,3.80522]
[1729215847825,1.063,2628.3,2627.9,7.61044]
[1729215848017,1.063,2628.3,2628.2,3.80488]
[1729215848211,0.11825561,2628.4,2627.9,4.17820324]
[1729215848512,0.11825561,2628.4,2628.3,3.80474]
[1729215850043,0.11825561,2628.4,2628.1,3.80495]
[1729215850563,0.11825561,2628.4,2628.3,3.80474]
[1729215852012,0.11825561,2628.4,2628.2,3.80487]
[1729215852215,0.11825561,2628.4,2628.2,3.80479]
[1729215852623,0.11825561,2628.4,2628.3,3.80474]
[1729215855631,1.13765561,2628.4,2628.0,3.80508]
[1729215856421,1.13765561,2628.4,2628.1,3.80494]
[1729215856626,1.13765561,2628.4,2628.0,3.80508]
[1729215857056,5.81690917,2628.4,2627.8,3.80538]
[1729215857263,5.81690917,2628.4,2627.9,3.80521]
[1729215857464,3.80496,2628.2,2627.6,3.80567]
[1729215857687,1.0194,2628.2,2627.7,3.80552]
[1729215857827,5.68455192,2628.2,2627.6,3.80567]
[1729215858028,5.68455192,2628.2,2627.6,7.61134]
[1729215858476,5.68455192,2628.2,2627.6,3.80567]
[1729215858646,5.68455192,2628.2,2627.6,7.61134]
[1729215858834,5.68455192,2628.2,2627.6,7.61133]
[1729215859036,5.68455192,2628.2,2627.6,3.80566]
[1729215859746,3.80504,2628.1,2627.6,3.80566]
[1729215859943,5.68455192,2628.2,2627.6,3.80566]
[1729215860156,9.48952192,2628.2,2627.6,3.80566]
[1729215860378,5.68455192,2628.2,2627.6,3.80566]
[1729215860876,3.80505,2628.1,2627.6,3.80566]
[1729215861440,1.87965192,2628.2,2627.6,3.80561]
[1729215861661,1.0194,2628.2,2627.9,3.80531]
[1729215861873,1.0194,2628.2,2628.0,3.80507]
[1729215862434,0.11825561,2628.4,2628.0,3.80516]
[1729215862658,0.11825561,2628.4,2628.1,3.80494]
[1729215863237,0.11825561,2628.4,2627.6,4.50064947]
[1729215863238,0.11825561,2628.4,2628.3,3.80474]
[1729215863579,0.11825561,2628.4,2628.3,4.64179101]
[1729215863874,0.11825561,2628.4,2628.3,4.565701]
[1729215864259,0.11825561,2628.4,2628.3,4.64178361]
[1729215864461,0.11825561,2628.4,2628.3,4.565701]
[1729215869856,0.11825561,2628.4,2628.3,0.760961]
[1729215870057,0.11825561,2628.4,2628.2,3.80479]
[1729215870499,0.11825561,2628.4,2628.3,3.80474]
[1729215870881,0.11825561,2628.4,2628.2,3.80479]
[1729215871052,0.11825561,2628.4,2628.3,3.80474]
[1729215872770,0.11825561,2628.4,2628.3,4.90664]
[1729215872950,0.11825561,2628.4,2628.3,6.11873795]
[1729215873766,0.11825561,2628.4,2628.3,5.01683795]
[1729215875989,0.11825561,2628.4,2628.3,5.09291538]
[1729215876194,0.11825561,2628.4,2628.3,5.09291533]
[1729215876398,0.11825561,2628.4,2628.3,6.12753795]
[1729215876696,0.11825561,2628.4,2628.3,9.67753795]
[1729215876995,5.61e-06,2628.4,2628.3,10.27035744]
[1729215877157,0.1276043,2628.8,2628.7,6.80416]
[1729215877358,0.1276043,2628.8,2628.7,11.45929705]
[1729215877596,0.1276043,2628.8,2628.7,11.93323447]
[1729215877770,0.1276043,2628.8,2628.7,13.80615247]
[1729215878162,0.1276043,2628.8,2628.7,13.81615247]
[1729215878356,0.1276043,2628.8,2628.7,13.81567234]
[1729215878601,0.1276043,2628.8,2628.7,15.49120693]
[1729215878902,0.1276043,2628.8,2628.7,15.49032663]
[1729215879200,0.1276043,2628.8,2628.7,15.49034763]
[1729215879405,0.1276043,2628.8,2628.7,13.03803447]
[1729215879696,0.00376,2629.0,2628.9,7.35387]
[1729215879859,0.00376,2629.0,2628.9,11.82053397]
[1729215880059,0.00376,2629.0,2628.9,11.74448774]
[1729215880297,0.00376,2629.0,2628.9,13.41814449]
[1729215880593,0.00376,2629.0,2628.9,10.95733673]
[1729215881382,0.00376,2629.0,2628.9,6.31253673]
[1729215881798,0.00376,2629.0,2628.9,3.80387]
[1729215887033,0.00376,2629.0,2628.8,3.804]
[1729215888030,0.00376,2629.0,2628.8,3.80391]
[1729215888238,0.00376,2629.0,2628.9,3.87993773]
[1729215888451,0.00376,2629.0,2628.9,0.07606773]
[1729215888626,0.00376,2629.0,2628.7,7.60815]
[1729215888828,0.00376,2629.0,2628.9,3.80387]
[1729215889205,0.00376,2629.0,2628.9,3.8799377]
[1729215890129,0.00376,2629.0,2628.8,11.01754947]
[1729215890307,0.00376,2629.0,2628.8,11.01746947]
[1729215890503,0.00376,2629.0,2628.9,3.80387]
[1729215890710,0.00376,2629.0,2628.9,3.87993775]
[1729215891510,0.00376,2629.0,2628.9,3.80387]
[1729215891714,0.00376,2629.0,2628.9,5.10227775]
[1729215892106,0.00376,2629.0,2628.9,5.02620994]
[1729215892923,0.00376,2629.0,2628.9,1.22233994]
[1729215893224,0.00376,2629.0,2628.9,3.87993761]
[1729215893839,0.00376,2629.0,2628.9,3.87993276]
[1729215894150,0.00376,2629.0,2628.9,4.99953276]
[1729215894558,0.00376,2629.0,2628.9,7.99953276]
[1729215894864,0.00376,2629.0,2628.9,11.88301947]
[1729215895013,0.00376,2629.0,2628.9,10.38511889]
[1729215895454,0.00376,2629.0,2628.9,9.83511889]
[1729215895909,0.00376,2629.0,2628.9,10.38511889]
[1729215896419,0.00376,2629.0,2628.9,9.83511889]
[1729215898442,0.00376,2629.0,2628.9,10.38511889]
[1729215900714,0.00376,2629.0,2628.9,9.83511889]
[1729215900928,0.00376,2629.0,2628.9,10.38511889]
[1729215902427,0.00376,2629.0,2628.9,14.38748785]
[1729215903032,0.00376,2629.0,2628.9,13.79466836]
[1729215903748,0.00376,2629.0,2628.9,10.38511889]
[1729215904769,0.00376,2629.0,2628.9,13.79466836]
[1729215905468,0.00376,2629.0,2628.9,17.20421783]
[1729215905629,0.00376,2629.0,2628.9,13.79466836]
[1729215905829,0.00376,2629.0,2628.9,17.21421783]
[1729215906029,0.00376,2629.0,2628.9,13.80466836]
[1729215906531,0.00376,2629.0,2628.9,13.79466836]
[1729215906933,1.1237,2629.8,2629.7,3.80271]
[1729215907235,1.1237,2629.8,2629.7,7.21225947]
[1729215907755,1.1237,2629.8,2629.7,3.80271]
[1729215908443,1.1237,2629.8,2629.6,3.80284]
[1729215908647,3.0257,2629.8,2629.6,7.60561]
[1729215908842,3.0257,2629.8,2629.7,3.80271]
[1729215909073,3.0257,2629.8,2629.7,7.21225947]
[1729215909245,1.902,2629.8,2629.7,8.32136736]
[1729215915454,1.902,2629.8,2629.6,3.80277]
[1729215915455,2.9654,2629.8,2629.6,3.80277]
[1729215915653,2.9654,2629.8,2629.7,3.80271]
[1729215915863,1.902,2629.8,2629.7,7.21225947]
[1729215916588,2.9654,2629.8,2629.7,3.40954947]
[1729215916792,1.0634,2629.7,2629.1,7.21299947]
[1729215916952,1.0634,2629.5,2629.0,3.80363]
[1729215917359,1.0634,2629.5,2629.2,3.80335]
[1729215918258,1.0634,2629.5,2629.2,3.80334]
[1729215919794,1.0634,2629.5,2629.3,3.80327]
[1729215920183,1.0634,2629.5,2629.3,7.21281947]
[1729215920385,1.0634,2629.5,2629.4,3.80314]
[1729215920825,3.0097,2629.8,2629.7,3.80271]
[1729215921007,1.902,2629.8,2629.7,7.21225947]
[1729215921911,1.902,2629.8,2629.7,7.28830194]
[1729215922121,1.902,2629.8,2629.7,8.50439613]
[1729215922281,1.902,2629.8,2629.7,8.42835366]
[1729215922630,1.902,2629.8,2629.7,11.42835366]
[1729215923992,0.00071,2629.8,2629.7,11.97835366]
[1729215924425,0.0774,2630.0,2629.8,0.55]
[1729215924729,1.096,2631.3,2630.0,1.6801]
[1729215924952,1.096,2631.3,2631.2,7.21008947]
[1729215925139,1.096,2631.3,2631.2,0.07600304]
[1729215925302,1.096,2631.3,2630.9,7.21044947]
[1729215925303,1.096,2631.3,2631.0,3.80073]
[1729215925625,1.096,2631.3,2631.2,3.80054]
[1729215925835,0.1276043,2631.4,2631.3,3.8004]
[1729215927310,1.2149043,2631.4,2631.0,3.80076]
[1729215927495,1.2149043,2631.4,2630.8,1.0651]